bitfinex/quotes_SOLUSD_20251118
["timestamp","ask_amount","ask_price","bid_price","bid_amount"]
[1763433416034,9.04006734,133.99,133.98,0.2]
[1763433416505,9.74006734,133.99,133.98,0.2]
[1763433417719,9.74006734,133.99,133.92,22.53635931]
[1763433417928,9.04006734,133.95,133.92,22.53635931]
[1763433418207,9.04006734,133.95,133.92,0.2]
[1763433418406,0.7,133.94,133.92,0.2]
[1763433420307,9.74006734,133.94,133.92,0.2]
[1763433420521,9.04006734,133.93,133.84,6.25799946]
[1763433420730,9.04006734,133.88,133.84,0.2]
[1763433421042,9.04006734,133.86,133.84,0.2]
[1763433421212,0.7,133.85,133.84,0.2]
[1763433421644,9.74006734,133.85,133.84,0.2]
[1763433422144,9.74006734,133.85,133.76,6.05799946]
[1763433422356,9.04006734,133.82,133.76,9.04006734]
[1763433422515,9.04006734,133.81,133.76,9.04006734]
[1763433422714,9.04006734,133.8,133.74,6.05799946]
[1763433422917,9.04006734,133.8,133.7,0.74794315]
[1763433422918,9.04006734,133.77,133.71,0.69]
[1763433423253,9.04006734,133.74,133.68,17.72399768]
[1763433423470,18.12096,133.75,133.68,1.93593088]
[1763433423741,9.04006734,133.7,133.68,1.93593088]
[1763433423937,9.04006734,133.69,133.68,1.93593088]
[1763433424115,0.7,133.78,133.68,1.93593088]
[1763433424116,0.7,133.73,133.68,1.93593088]
[1763433424316,9.04006734,133.73,133.68,1.93593088]
[1763433424619,9.04006734,133.7,133.68,1.93593088]
[1763433424828,9.04006734,133.71,133.68,1.93593088]
[1763433425020,9.04006734,133.7,133.68,1.93593088]
[1763433425340,9.04006734,133.69,133.68,1.93593088]
[1763433425724,0.7,133.72,133.68,1.93593088]
[1763433425922,9.04006734,133.72,133.68,1.93593088]
[1763433426262,9.74006734,133.74,133.68,11.66599822]
[1763433426424,9.04006734,133.72,133.68,1.93593088]
[1763433426623,9.74006734,133.71,133.68,1.93593088]
[1763433426825,9.04006734,133.69,133.68,1.93593088]
[1763433427134,9.04006734,133.69,133.68,0.68593088]
[1763433427456,27.76102734,133.69,133.68,0.58593088]
[1763433427620,9.64006734,133.69,133.68,0.58593088]
[1763433427821,9.78882769,133.68,133.61,0.2]
[1763433428051,9.04006734,133.62,133.61,0.2]
[1763433428422,0.5,133.66,133.61,0.2]
[1763433428934,9.04006734,133.63,133.61,0.2]
[1763433429126,2.0,133.73,133.62,0.69]
[1763433429343,0.5,133.7,133.62,0.69]
[1763433429651,9.04006734,133.66,133.61,0.2]
[1763433429954,9.04006734,133.65,133.61,0.89]
[1763433430165,9.04006734,133.68,133.62,9.78882769]
[1763433430329,9.04006734,133.71,133.66,9.04006734]
[1763433430529,9.04006734,133.72,133.67,10.47882769]
[1763433430746,9.04006734,133.73,133.68,9.78882769]
[1763433430931,27.16102734,133.72,133.68,9.78882769]
[1763433431132,18.12096,133.72,133.66,10.47882769]
[1763433431336,9.04006734,133.73,133.67,0.69]
[1763433431747,9.04006734,133.71,133.67,0.69]
[1763433432049,9.04006734,133.71,133.65,10.43882769]
[1763433432253,0.5,133.76,133.69,9.78882769]
[1763433432550,0.5,133.79,133.71,9.78882769]
[1763433432743,9.04006734,133.78,133.71,9.78882769]
[1763433432920,2.0,133.85,133.71,0.65]
[1763433432921,5.88220463,133.83,133.71,0.65]
[1763433433126,5.88220463,133.76,133.71,0.65]
[1763433433359,5.88220463,133.73,133.69,9.78882769]
[1763433433529,5.88220463,133.74,133.69,9.78882769]
[1763433433726,5.88220463,133.75,133.71,9.78882769]
[1763433433924,0.5,133.78,133.73,9.78882769]
[1763433434127,5.88220463,133.78,133.73,9.78882769]
[1763433434362,5.88220463,133.77,133.73,9.78882769]
[1763433434533,5.88220463,133.77,133.73,0.65]
[1763433435042,5.88220463,133.75,133.71,9.78882769]
[1763433435236,5.88220463,133.75,133.67,5.88220463]
[1763433435237,5.88220463,133.72,133.68,9.78882769]
[1763433435422,24.00316463,133.74,133.7,9.78882769]
[1763433435848,18.12096,133.74,133.72,9.78882769]
[1763433436948,18.12096,133.74,133.7,10.43882769]
[1763433437369,5.88220463,133.77,133.72,9.78882769]
[1763433437558,24.00316463,133.77,133.72,9.78882769]
[1763433437762,24.00316463,133.77,133.72,10.43882769]
[1763433438386,5.88220463,133.79,133.74,9.78882769]
[1763433438752,5.88220463,133.79,133.74,0.67]
[1763433438970,5.88220463,133.76,133.72,9.78882769]
[1763433439171,5.88220463,133.8,133.74,9.78882769]
[1763433439481,18.12096,133.8,133.74,9.78882769]
[1763433439668,5.88220463,133.83,133.69,18.12096]
[1763433439669,24.00316463,133.75,133.69,0.67]
[1763433439877,18.12096,133.75,133.7,0.67]
[1763433441079,24.00316463,133.75,133.7,0.67]
[1763433441478,5.88220463,133.73,133.7,0.67]
[1763433441663,5.88220463,133.73,133.69,9.78882769]
[1763433441980,5.88220463,133.73,133.69,0.67]
[1763433442363,18.12096,133.75,133.69,0.67]
[1763433442564,5.88220463,133.73,133.69,0.67]
[1763433442887,5.88220463,133.73,133.65,18.12096]
[1763433442888,5.88220463,133.7,133.65,0.67]
[1763433443256,5.88220463,133.68,133.63,0.67]
[1763433443458,5.88220463,133.65,133.61,0.2]
[1763433443679,5.88220463,133.62,133.61,0.2]
[1763433444179,6.38220463,133.62,133.61,0.1]
[1763433444558,5.88220463,133.62,133.61,0.1]
[1763433444758,6.28220463,133.62,133.61,0.1]
[1763433445257,24.00316463,133.62,133.61,0.1]
[1763433445983,24.40316463,133.62,133.61,0.1]
[1763433446188,6.28220463,133.62,133.61,0.1]
[1763433446395,18.12096,133.62,133.61,0.1]
[1763433446771,5.88220463,133.65,133.61,0.77]
[1763433447087,24.00316463,133.66,133.62,9.78882769]
[1763433447270,5.88220463,133.65,133.61,0.1]
[1763433447910,24.00316463,133.66,133.61,0.1]
[1763433448063,5.88220463,133.67,133.63,9.78882769]
[1763433448601,0.4,133.71,133.64,5.88220463]
[1763433448801,5.88220463,133.68,133.61,0.84844697]
[1763433449087,18.12096,133.71,133.62,6.55220463]
[1763433449286,24.00316463,133.68,133.63,9.78882769]
[1763433449472,5.88220463,133.66,133.61,0.1]
[1763433449674,5.88220463,133.64,133.61,0.1]
[1763433449866,5.88220463,133.62,133.61,0.1]
[1763433450464,0.4,133.64,133.61,0.1]
[1763433450878,5.88220463,133.62,133.61,0.1]
[1763433451601,6.28220463,133.62,133.61,0.1]
[1763433452378,5.88220463,133.62,133.61,0.1]
[1763433452910,6.28220463,133.62,133.61,0.1]
[1763433453474,18.12096,133.6,133.59,0.2]
[1763433453877,24.30316463,133.6,133.59,0.2]
[1763433454689,24.30316463,133.6,133.59,0.1]
[1763433454888,24.00316463,133.6,133.59,0.1]
[1763433455599,5.88220463,133.6,133.59,0.1]
[1763433455779,18.12096,133.62,133.59,0.1]
[1763433455980,5.88220463,133.6,133.59,0.1]
[1763433456401,0.2,133.6,133.59,0.1]
[1763433456705,5.88220463,133.6,133.59,0.1]
[1763433457292,6.08220463,133.6,133.59,0.1]
[1763433457804,5.88220463,133.6,133.59,0.1]
[1763433458583,2.0,133.68,133.59,0.1]
[1763433458584,2.0,133.73,133.6,9.78882769]
[1763433458786,5.88220463,133.74,133.6,9.78882769]
[1763433458787,5.88220463,133.65,133.6,10.45882769]
[1763433459016,5.88220463,133.64,133.6,10.45882769]
[1763433459214,5.88220463,133.63,133.6,10.45882769]
[1763433459389,0.2,133.69,133.62,9.78882769]
[1763433459586,5.88220463,133.65,133.62,9.78882769]
[1763433459892,5.88220463,133.65,133.6,9.78882769]
[1763433460220,5.88220463,133.63,133.59,0.1]
[1763433460385,5.88220463,133.63,133.59,9.88882769]
[1763433460585,24.00316463,133.64,133.61,9.78882769]
[1763433460788,18.12096,133.64,133.61,9.78882769]
[1763433460997,24.00316463,133.64,133.59,6.65220463]
[1763433461197,24.00316463,133.64,133.61,9.78882769]
[1763433461797,18.12096,133.64,133.62,0.68]
[1763433462383,9.78882769,133.73,133.63,15.67103232]
[1763433462384,0.2,133.73,133.63,15.67103232]
[1763433462603,5.88220463,133.68,133.63,15.67103232]
[1763433462801,24.00316463,133.67,133.63,10.46882769]
[1763433462992,24.00316463,133.67,133.59,9.88882769]
[1763433462993,5.88220463,133.64,133.59,0.1]
[1763433463201,24.00316463,133.63,133.59,9.88882769]
[1763433463516,24.00316463,133.63,133.59,0.78]
[1763433463818,24.00316463,133.63,133.6,0.68]
[1763433464311,24.00316463,133.63,133.59,0.1]
[1763433464614,24.00316463,133.63,133.59,0.78]
[1763433466289,5.88220463,133.62,133.59,0.78]
[1763433466488,5.88220463,133.62,133.59,0.1]
[1763433467112,18.12096,133.63,133.6,0.68]
[1763433468015,7.88220463,133.74,133.6,0.68]
[1763433468016,0.2,133.71,133.62,5.88220463]
[1763433468208,0.2,133.74,133.63,15.67103232]
[1763433468511,5.88220463,133.69,133.65,9.78882769]
[1763433468689,18.12096,133.71,133.64,16.35103232]
[1763433468886,0.2,133.73,133.65,0.68]
[1763433469086,5.88220463,133.69,133.65,0.68]
[1763433469293,0.1,133.78,133.65,0.68]
[1763433469517,0.2,133.77,133.66,15.67103232]
[1763433469819,18.12096,133.71,133.66,15.67103232]
[1763433470109,5.88220463,133.73,133.68,15.67103232]
[1763433470286,24.00316463,133.72,133.68,9.78882769]
[1763433470490,24.00316463,133.72,133.69,0.68]
[1763433470686,18.12096,133.71,133.7,9.78882769]
[1763433471112,5.88220463,133.74,133.7,9.78882769]
[1763433471410,5.88220463,133.74,133.69,0.68]
[1763433471411,0.1,133.78,133.71,0.68]
[1763433471602,24.00316463,133.73,133.69,9.78882769]
[1763433471803,24.00316463,133.7,133.66,9.78882769]
[1763433472200,24.00316463,133.7,133.66,0.68]
[1763433472396,24.00316463,133.69,133.65,9.78882769]
[1763433472718,18.12096,133.69,133.66,0.68]
[1763433473020,24.00316463,133.69,133.66,0.68]
[1763433473389,24.00316463,133.69,133.64,9.78882769]
[1763433473599,24.00316463,133.69,133.65,0.68]
[1763433474893,18.12096,133.69,133.65,0.68]
[1763433475093,24.00316463,133.69,133.65,0.68]
[1763433475304,5.88220463,133.68,133.63,10.46882769]
[1763433475616,5.88220463,133.68,133.63,15.67103232]
[1763433475813,24.00316463,133.69,133.64,0.68]
[1763433476216,24.00316463,133.69,133.64,6.56220463]
[1763433476393,24.00316463,133.66,133.62,6.05799946]
[1763433476594,5.88220463,133.65,133.61,0.68]
[1763433477021,5.88220463,133.64,133.59,6.15799946]
[1763433477219,5.88220463,133.63,133.59,6.83799946]
[1763433477519,24.00316463,133.63,133.6,0.68]
[1763433477816,18.12096,133.63,133.6,0.68]
[1763433477998,24.00316463,133.63,133.6,0.68]
[1763433479417,0.2,133.71,133.62,15.67103232]
[1763433479597,24.00316463,133.67,133.63,9.78882769]
[1763433479801,5.88220463,133.67,133.63,0.68]
[1763433480019,5.88220463,133.68,133.65,9.78882769]
[1763433480317,18.12096,133.66,133.65,9.78882769]
[1763433480535,5.88220463,133.74,133.66,0.68]
[1763433480709,5.88220463,133.7,133.67,9.78882769]
[1763433480916,18.12096,133.68,133.67,9.78882769]
[1763433481237,6.08220463,133.68,133.62,6.05799946]
[1763433481401,0.2,133.67,133.6,9.78882769]
[1763433481603,24.00316463,133.64,133.6,10.46882769]
[1763433482211,0.2,133.67,133.6,10.46882769]
[1763433482212,0.2,133.67,133.61,0.68]
[1763433482420,5.88220463,133.62,133.59,9.88882769]
[1763433482828,5.88220463,133.61,133.59,0.1]
[1763433483126,18.12096,133.6,133.59,0.1]
[1763433484251,5.88220463,133.63,133.6,9.78882769]
[1763433484534,18.12096,133.63,133.6,15.84682715]
[1763433484831,5.88220463,133.62,133.59,0.1]
[1763433485004,5.88220463,133.63,133.6,9.78882769]
[1763433485437,18.12096,133.62,133.61,0.68]
[1763433485929,18.12096,133.64,133.61,0.68]
[1763433486129,18.12096,133.64,133.61,6.73799946]
[1763433486453,5.88220463,133.74,133.63,15.67103232]
[1763433486610,5.88220463,133.7,133.65,15.84682715]
[1763433486930,18.12096,133.69,133.65,15.84682715]
[1763433487126,5.88220463,133.69,133.66,0.68]
[1763433487427,18.12096,133.66,133.62,15.84682715]
[1763433487618,18.12096,133.71,133.63,6.56220463]
[1763433487818,18.12096,133.68,133.65,9.78882769]
[1763433488026,24.00316463,133.68,133.65,9.78882769]
[1763433488242,24.00316463,133.68,133.65,10.46882769]
[1763433488738,24.00316463,133.68,133.66,0.68]
[1763433488948,18.12096,133.68,133.66,0.68]
[1763433489123,5.88220463,133.72,133.67,15.84682715]
[1763433489450,5.88220463,133.73,133.67,15.84682715]
[1763433489621,18.12096,133.72,133.69,9.78882769]
[1763433489829,24.00316463,133.72,133.69,9.78882769]
[1763433490128,24.00316463,133.72,133.69,0.68]
[1763433490352,5.88220463,133.72,133.69,0.68]
[1763433490646,18.32096,133.75,133.69,0.68]
[1763433490853,5.88220463,133.72,133.69,0.68]
[1763433491026,18.12096,133.69,133.65,16.52682715]
[1763433491363,0.2,133.77,133.67,9.78882769]
[1763433491539,18.12096,133.71,133.67,21.72903178]
[1763433491732,18.12096,133.7,133.69,9.78882769]
[1763433492250,18.12096,133.7,133.69,0.69]
[1763433492550,18.12096,133.72,133.69,0.69]
[1763433493142,18.12096,133.72,133.69,9.79844484]
[1763433493327,18.12096,133.72,133.7,9.78882769]
[1763433493531,18.12096,133.72,133.7,10.47882769]
[1763433493736,9.10844484,133.74,133.71,0.69]
[1763433494042,9.10844484,133.76,133.71,9.79844484]
[1763433494263,0.1,133.78,133.73,9.78882769]
[1763433494431,0.1,133.78,133.75,9.78882769]
[1763433494629,0.1,133.78,133.76,0.69]
[1763433495656,18.12096,133.77,133.73,18.89727253]
[1763433495857,18.12096,133.77,133.75,9.78882769]
[1763433496069,0.1,133.78,133.75,9.78882769]
[1763433496358,0.1,133.78,133.76,0.69]
[1763433496555,0.1,133.78,133.77,9.78882769]
[1763433496961,0.1,133.78,133.77,10.47882769]
[1763433497158,9.20844484,133.78,133.74,0.69]
[1763433497374,18.12096,133.76,133.72,6.05799946]
[1763433497562,27.22940484,133.77,133.72,9.78882769]
[1763433497875,9.10844484,133.73,133.69,6.05799946]
[1763433498162,9.10844484,133.72,133.69,9.78882769]
[1763433498468,9.10844484,133.71,133.69,0.69]
[1763433498653,9.10844484,133.73,133.7,0.7]
[1763433499033,9.10844484,133.75,133.71,9.78882769]
[1763433499234,9.10844484,133.76,133.71,18.89727253]
[1763433499434,27.22940484,133.75,133.72,0.7]
[1763433499636,27.22940484,133.75,133.7,0.7]
[1763433499867,18.12096,133.75,133.71,0.7]
[1763433500569,27.22940484,133.77,133.73,9.78882769]
[1763433500861,27.22940484,133.77,133.74,0.7]
[1763433501234,18.12096,133.75,133.74,10.48882769]
[1763433501434,18.12096,133.75,133.74,0.7]
[1763433501658,0.1,133.78,133.74,9.80844484]
[1763433502030,0.1,133.78,133.75,0.7]
[1763433502238,0.1,133.78,133.65,6.11401402]
[1763433502239,40.77688968,133.76,133.65,6.11401402]
[1763433502447,47.61306513,133.78,133.59,0.1]
[1763433502448,18.12096,133.63,133.59,0.1]
[1763433502748,18.12096,133.63,133.61,0.7]
[1763433503149,18.12096,133.62,133.61,0.7]
[1763433503355,27.22940484,133.62,133.59,0.1]
[1763433503548,9.10844484,133.6,133.59,0.1]
[1763433503740,9.10844484,133.61,133.59,0.1]
[1763433504260,9.10844484,133.6,133.59,0.1]
[1763433504579,18.12096,133.6,133.59,0.1]
[1763433504759,27.22940484,133.6,133.59,0.1]
[1763433506060,9.78882769,133.59,133.57,0.2]
[1763433506380,28.00571737,133.6,133.57,0.2]
[1763433506381,9.10844484,133.6,133.57,0.2]
[1763433506543,9.10844484,133.58,133.57,0.2]
[1763433507270,9.10844484,133.61,133.57,0.9]
[1763433507474,18.12096,133.6,133.57,0.2]
[1763433507778,9.10844484,133.64,133.59,9.78882769]
[1763433507946,9.10844484,133.7,133.59,18.89727253]
[1763433507947,9.10844484,133.65,133.59,18.89727253]
[1763433508145,9.10844484,133.66,133.6,0.7]
[1763433508383,9.10844484,133.68,133.61,18.89727253]
[1763433508592,9.10844484,133.66,133.61,9.78882769]
[1763433508875,9.10844484,133.67,133.63,9.78882769]
[1763433509077,9.10844484,133.67,133.64,0.7]
[1763433509078,9.10844484,133.66,133.64,0.7]
[1763433509383,9.10844484,133.67,133.64,0.7]
[1763433509559,9.10844484,133.66,133.64,0.7]
[1763433509872,9.10844484,133.65,133.61,0.7]
[1763433510043,27.22940484,133.64,133.61,0.7]
[1763433510443,18.12096,133.64,133.62,9.78882769]
[1763433510876,18.12096,133.64,133.62,0.7]
[1763433511046,18.12096,133.64,133.61,9.78882769]
[1763433511252,18.12096,133.64,133.62,0.7]
[1763433511845,27.22940484,133.64,133.62,0.7]
[1763433512072,18.12096,133.64,133.62,0.7]
[1763433513467,27.22940484,133.64,133.62,0.7]
[1763433514044,9.10844484,133.63,133.6,9.78882769]
[1763433514271,18.12096,133.62,133.61,0.7]
[1763433514494,18.12096,133.59,133.57,9.98882769]
[1763433514672,18.12096,133.68,133.59,9.78882769]
[1763433514874,18.12096,133.6,133.59,9.78882769]
[1763433515055,18.12096,133.6,133.59,10.48882769]
[1763433515654,9.10844484,133.64,133.59,19.59727253]
[1763433515854,9.10844484,133.65,133.6,9.80844484]
[1763433516048,18.12096,133.62,133.6,9.80844484]
[1763433516246,18.12096,133.62,133.61,10.48882769]
[1763433516669,18.12096,133.62,133.61,9.78882769]
[1763433516880,2.0,133.79,133.62,9.78882769]
[1763433517058,9.10844484,133.68,133.64,9.78882769]
[1763433517265,18.12096,133.66,133.64,9.78882769]
[1763433517570,18.12096,133.65,133.64,9.78882769]
[1763433517755,9.10844484,133.69,133.64,10.48882769]
[1763433518074,0.1,133.78,133.66,9.78882769]
[1763433518251,9.10844484,133.7,133.66,9.78882769]
[1763433518447,18.12096,133.67,133.66,9.78882769]
[1763433518681,9.10844484,133.7,133.66,9.78882769]
[1763433518881,9.10844484,133.7,133.66,10.48882769]
[1763433519176,9.10844484,133.72,133.68,9.78882769]
[1763433519374,9.10844484,133.73,133.68,9.78882769]
[1763433519561,18.12096,133.7,133.68,10.48882769]
[1763433519758,0.1,133.78,133.7,9.78882769]
[1763433519759,9.45506872,133.72,133.7,9.78882769]
[1763433519963,0.34662388,133.72,133.7,9.78882769]
[1763433520294,9.20844484,133.78,133.71,19.59727253]
[1763433520455,9.20844484,133.78,133.74,9.78882769]
[1763433520852,0.1,133.78,133.76,9.78882769]
[1763433521354,18.22096,133.78,133.77,10.48882769]
[1763433521758,9.20844484,133.78,133.73,9.78882769]
[1763433522058,9.10844484,133.75,133.7,9.78882769]
[1763433522251,18.12096,133.68,133.66,9.78882769]
[1763433522466,18.12096,133.69,133.66,9.78882769]
[1763433522797,18.12096,133.69,133.59,12.11599892]
[1763433522798,18.12096,133.69,133.68,9.78882769]
[1763433523081,0.35,133.77,133.68,9.78882769]
[1763433523302,18.12096,133.77,133.7,9.10844484]
[1763433523591,18.12096,133.73,133.72,9.78882769]
[1763433523762,9.10844484,133.76,133.72,10.48882769]
[1763433523957,0.1,133.78,133.74,18.89727253]
[1763433524387,0.1,133.78,133.75,9.80844484]
[1763433524990,0.1,133.78,133.76,0.7]
[1763433525358,0.1,133.78,133.77,9.78882769]
[1763433525793,0.1,133.78,133.77,0.7]
[1763433527281,0.1,133.83,133.78,9.78882769]
[1763433527581,9.10844484,133.81,133.78,9.78882769]
[1763433527781,9.10844484,133.81,133.77,0.7]
[1763433527782,9.10844484,133.81,133.8,9.78882769]
[1763433528179,9.10844484,133.81,133.8,0.7]
[1763433528987,9.10844484,133.81,133.74,9.78882769]
[1763433529264,0.1,133.83,133.79,9.78882769]
[1763433529265,9.10844484,133.82,133.79,9.78882769]
[1763433529574,0.1,133.83,133.79,18.89727253]
[1763433529777,0.1,133.83,133.81,9.78882769]
[1763433529993,0.1,133.85,133.81,18.89727253]
[1763433530306,0.1,133.85,133.83,9.78882769]
[1763433530510,9.20844484,133.85,133.83,9.78882769]
[1763433530674,9.20844484,133.85,133.83,0.7]
[1763433531171,0.1,133.85,133.84,10.48882769]
[1763433531373,9.20844484,133.85,133.84,9.78882769]
[1763433531816,9.20844484,133.85,133.8,9.78882769]
[1763433531981,9.10844484,133.82,133.81,10.48882769]
[1763433532186,9.10844484,133.82,133.78,9.78882769]
[1763433532382,0.1,133.85,133.78,10.48882769]
[1763433532583,0.1,133.85,133.8,9.78882769]
[1763433532891,9.10844484,133.83,133.8,9.78882769]
[1763433533196,0.1,133.85,133.82,9.78882769]
[1763433533693,0.1,133.85,133.84,9.78882769]
[1763433534186,0.1,133.85,133.84,10.48882769]
[1763433536481,9.10844484,133.9,133.85,9.78882769]
[1763433536819,9.20844484,133.94,133.89,18.89727253]
[1763433537101,0.75,133.99,133.86,0.74704915]
[1763433537102,0.1,133.99,133.94,9.78882769]
[1763433537272,0.1,133.99,133.96,9.78882769]
[1763433537477,0.1,133.99,133.98,9.78882769]
[1763433537910,0.1,133.99,133.98,10.48882769]
[1763433538106,0.69,134.08,134.0,9.78882769]
[1763433538314,9.10844484,134.05,134.0,9.78882769]
[1763433538520,9.10844484,134.05,134.02,9.78882769]
[1763433538686,9.10844484,134.04,134.02,9.78882769]
[1763433538876,18.12096,134.13,134.0,9.78882769]
[1763433539086,9.10844484,134.05,134.02,9.78882769]
[1763433539600,9.10844484,134.1,134.0,0.7]
[1763433539794,9.10844484,134.1,134.01,9.78882769]
[1763433539795,9.10844484,134.04,134.01,9.78882769]
[1763433540303,18.12096,134.07,134.01,9.78882769]
[1763433540304,9.10844484,134.02,134.01,9.78882769]
[1763433540507,9.10844484,134.02,133.98,10.48882769]
[1763433540710,0.69,134.06,133.98,10.48882769]
[1763433540919,9.10844484,134.0,133.98,10.48882769]
[1763433541082,9.10844484,134.01,133.98,10.48882769]
[1763433541280,9.10844484,134.01,133.98,0.7]
[1763433541515,9.10844484,134.01,134.0,9.78882769]
[1763433542687,0.69,134.09,134.0,0.7]
[1763433542887,0.69,134.12,134.02,18.89727253]
[1763433543221,9.10844484,134.1,134.05,9.78882769]
[1763433543378,9.10844484,134.09,134.05,9.78882769]
[1763433543588,9.10844484,134.09,134.06,9.78882769]
[1763433543810,9.10844484,134.09,134.06,10.48882769]
[1763433543983,9.10844484,134.08,134.05,9.78882769]
[1763433544191,9.10844484,134.06,134.05,9.78882769]
[1763433544404,9.10844484,134.06,133.9,42.66837398]
[1763433544405,9.10844484,134.06,133.97,0.7]
[1763433544586,9.10844484,133.98,133.94,10.48882769]
[1763433544792,9.10844484,133.97,133.94,10.48882769]
[1763433544990,0.69,134.03,133.95,9.78882769]
[1763433545210,0.69,134.05,133.96,0.7]
[1763433545387,9.10844484,134.02,133.98,9.78882769]
[1763433545698,9.10844484,134.02,134.0,9.78882769]
[1763433546091,9.10844484,134.02,134.0,0.7]
[1763433546296,0.69,134.1,134.02,9.78882769]
[1763433546626,9.10844484,134.11,134.06,18.89727253]
[1763433546810,0.69,134.15,134.06,9.78882769]
[1763433546811,9.10844484,134.1,134.06,9.78882769]
[1763433547015,9.10844484,134.1,134.06,10.48882769]
[1763433547210,9.10844484,134.1,134.07,0.7]
[1763433547920,0.69,134.14,134.08,9.78882769]
[1763433548100,9.10844484,134.11,134.08,9.78882769]
[1763433548411,9.10844484,134.1,134.06,9.78882769]
[1763433548602,9.10844484,134.1,134.05,9.80844484]
[1763433548603,0.69,134.17,134.08,18.89727253]
[1763433548916,9.10844484,134.14,134.1,9.78882769]
[1763433549291,9.10844484,134.11,134.05,18.12096]
[1763433549520,9.10844484,134.1,134.09,9.78882769]
[1763433549691,9.10844484,134.1,134.06,9.78882769]
[1763433549890,9.10844484,134.09,134.06,9.78882769]
[1763433550089,9.10844484,134.09,134.05,0.7]
[1763433550090,9.10844484,134.09,134.05,10.48882769]
[1763433550318,0.69,134.09,134.05,9.78882769]
[1763433550518,9.10844484,134.1,134.05,9.78882769]
[1763433550716,9.10844484,134.12,134.07,9.10844484]
[1763433550921,9.10844484,134.13,134.08,18.89727253]
[1763433551331,9.10844484,134.14,134.1,9.78882769]
[1763433551939,18.81096,134.17,134.1,9.78882769]
[1763433552102,9.10844484,134.14,134.1,9.78882769]
[1763433552302,9.10844484,134.15,134.1,18.89727253]
[1763433552722,9.10844484,134.15,134.1,19.55727253]
[1763433552926,9.10844484,134.12,134.07,0.66]
[1763433553127,9.10844484,134.1,134.08,9.78882769]
[1763433553627,27.22940484,134.11,134.06,18.89727253]
[1763433553820,27.22940484,134.11,134.06,19.55727253]
[1763433553821,9.10844484,134.11,134.06,19.55727253]
[1763433554026,9.10844484,134.11,134.08,9.78882769]
[1763433554215,27.22940484,134.13,134.08,18.89727253]
[1763433554414,9.10844484,134.09,134.02,0.66]
[1763433554721,18.12096,134.09,134.02,0.66]
[1763433555050,5.85489615,134.06,134.02,0.66]
[1763433555541,5.85489615,134.06,134.03,9.78882769]
[1763433555928,18.12096,134.08,134.03,0.66]
[1763433556219,18.12096,134.08,133.99,9.78882769]
[1763433556220,5.85489615,134.07,134.02,9.78882769]
[1763433556837,0.69,134.13,134.04,15.64372384]
[1763433557134,5.85489615,134.1,134.06,9.78882769]
[1763433557343,5.85489615,134.11,134.06,15.64372384]
[1763433557518,5.85489615,134.11,134.08,9.78882769]
[1763433558546,5.85489615,134.11,134.02,0.74615728]
[1763433558547,5.85489615,134.09,134.04,0.65]
[1763433558711,5.85489615,134.08,134.05,9.78882769]
[1763433559340,5.85489615,134.09,134.05,9.78882769]
[1763433560040,5.85489615,134.09,134.05,10.43882769]
[1763433560341,5.85489615,134.09,134.04,9.78882769]
[1763433560527,6.51489615,134.09,134.04,10.43882769]
[1763433560846,5.85489615,134.06,134.02,9.78882769]
[1763433561152,5.85489615,134.03,133.96,5.85489615]
[1763433561313,5.85489615,134.0,133.95,6.50489615]
[1763433561520,5.85489615,134.0,133.96,9.78882769]
[1763433561719,5.85489615,134.0,133.96,10.43882769]
[1763433562108,5.85489615,133.98,133.92,6.50489615]
[1763433562312,5.85489615,133.96,133.91,5.85489615]
[1763433562549,5.85489615,133.94,133.89,0.65]
[1763433562837,5.85489615,133.9,133.85,0.2]
[1763433563014,5.85489615,133.92,133.86,1.39704915]
[1763433563218,5.85489615,133.9,133.85,6.05489615]
[1763433563420,5.85489615,133.9,133.86,9.78882769]
[1763433563713,5.85489615,133.9,133.85,6.05489615]
[1763433563908,5.85489615,133.95,133.86,19.51800915]
[1763433564109,5.85489615,133.93,133.89,9.78882769]
[1763433564615,23.97585615,133.95,133.9,6.50489615]
[1763433564824,5.85489615,133.94,133.89,15.64372384]
[1763433565026,5.85489615,133.94,133.87,9.78882769]
[1763433565224,5.85489615,133.91,133.87,9.78882769]